fUSD/lending_fUSD_20250519
["ID","MTS","AMOUNT","RATE_DAILY","PERIOD"]
[361566524,1747617042345,-400.0,0.00013698,2]
[361566525,1747617042357,-447.07,0.00013698,2]
[361566526,1747617042367,-400.0,0.00013698,2]
[361566527,1747617042376,-400.0,0.00013698,2]
[361566528,1747617042386,-599.79,0.00013698,2]
[361566529,1747617042396,-329.73266062,0.00013698,2]
[361566530,1747617042405,-309.81683881,0.00013698,2]
[361566531,1747617042414,-400.0,0.00013698,2]
[361566532,1747617042424,-400.0,0.00013698,2]
[361566533,1747617042433,-400.0,0.00013698,2]
[361566534,1747617042443,-400.0,0.00013698,2]
[361566535,1747617042452,-403.61604175,0.00013698,2]
[361566536,1747617042462,-400.0,0.00013698,2]
[361566537,1747617042471,-400.0,0.00013698,2]
[361566538,1747617042481,-400.0,0.00013698,2]
[361566539,1747617042490,-400.0,0.00013698,2]
[361566540,1747617042500,-1265.37,0.00013698,2]
[361566541,1747617042513,-514.59,0.00013698,2]
[361566542,1747617042523,-400.0,0.00013698,2]
[361566543,1747617042533,-400.0,0.00013698,2]
[361566544,1747617042542,-669.34,0.00013698,2]
[361566545,1747617042551,-499.00883542,0.00013698,2]
[361566546,1747617042560,-500.0,0.00013698,2]
[361566547,1747617042570,-400.0,0.00013698,2]
[361566548,1747617042579,-1028.58,0.00013698,2]
[361566549,1747617042588,-400.0,0.00013698,2]
[361566550,1747617042598,-400.0,0.00013698,2]
[361566551,1747617042608,-400.0,0.00013698,2]
[361566552,1747617042617,-400.0,0.00013698,2]
[361566553,1747617042626,-400.0,0.00013698,2]
[361566554,1747617042636,-400.0,0.00013698,2]
[361566555,1747617042645,-202.30390307,0.00013698,2]
[361566556,1747617042655,-400.0,0.00013698,2]
[361566557,1747617042664,-329.23335528,0.00013698,2]
[361566558,1747617042673,-706.32,0.00013698,2]
[361566559,1747617042682,-478.71545539,0.00013698,2]
[361566560,1747617042691,-400.0,0.00013698,2]
[361566561,1747617042701,-400.0,0.00013698,2]
[361566562,1747617042710,-972.67,0.00013698,2]
[361566563,1747617042719,-400.0,0.00013698,2]
[361566564,1747617042728,-400.0,0.00013698,2]
[361566565,1747617042737,-400.0,0.00013698,2]
[361566566,1747617042746,-968.42,0.00013698,2]
[361566567,1747617042755,-400.0,0.00013698,2]
[361566568,1747617042767,-946.87,0.00013698,2]
[361566569,1747617042776,-504.6545319,0.00013698,2]
[361566570,1747617042786,-400.0,0.00013698,2]
[361566571,1747617042795,-442.48,0.00013698,2]
[361566572,1747617042805,-400.0,0.00013698,2]
[361566573,1747617042814,-400.0,0.00013698,2]
[361566574,1747617042823,-400.0,0.00013698,2]
[361566575,1747617042833,-404.15,0.00013698,2]
[361566576,1747617042842,-400.0,0.00013698,2]
[361566577,1747617042851,-400.0,0.00013698,2]
[361566578,1747617042861,-500.0,0.00013698,2]
[361566579,1747617042870,-400.0,0.00013698,2]
[361566580,1747617042879,-1178.5,0.00013698,2]
[361566581,1747617042888,-400.0,0.00013698,2]
[361566582,1747617042898,-400.0,0.00013698,2]
[361566583,1747617042907,-744.07,0.00013698,2]
[361566584,1747617042916,-400.0,0.00013698,2]
[361566585,1747617042926,-459.09,0.00013698,2]
[361566586,1747617042935,-444.55,0.00013698,2]
[361566587,1747617042946,-400.0,0.00013698,2]
[361566588,1747617042955,-1101.95,0.00013698,2]
[361566589,1747617042964,-400.0,0.00013698,2]
[361566590,1747617042974,-400.0,0.00013698,2]
[361566591,1747617042983,-400.0,0.00013698,2]
[361566593,1747617042992,-400.0,0.00013698,2]
[361566594,1747617043002,-400.0,0.00013698,2]
[361566595,1747617043013,-400.0,0.00013698,2]
[361566596,1747617043023,-505.55932091,0.00013698,2]
[361566597,1747617043032,-400.0,0.00013698,2]
[361566598,1747617043041,-400.0,0.00013698,2]
[361566599,1747617043051,-667.32,0.00013698,2]
[361566600,1747617043060,-400.0,0.00013698,2]
[361566602,1747617043070,-739.58,0.00013698,2]
[361566604,1747617043079,-400.0,0.00013698,2]
[361566605,1747617043089,-639.11,0.00013698,2]
[361566607,1747617043098,-400.0,0.00013698,2]
[361566608,1747617043107,-430.18,0.00013698,2]
[361566609,1747617043117,-400.0,0.00013698,2]
[361566610,1747617043126,-400.0,0.00013698,2]
[361566611,1747617043136,-400.0,0.00013698,2]
[361566612,1747617043145,-400.0,0.00013698,2]
[361566613,1747617043154,-400.0,0.00013698,2]
[361566614,1747617043163,-788.72,0.00013698,2]
[361566615,1747617043173,-400.0,0.00013698,2]
[361566616,1747617043182,-400.0,0.00013698,2]
[361566617,1747617043191,-400.0,0.00013698,2]
[361566618,1747617043200,-522.05,0.00013698,2]
[361566619,1747617043209,-400.0,0.00013698,2]
[361566620,1747617043218,-400.0,0.00013698,2]
[361566621,1747617043441,-400.0,0.00013698,2]
[361566623,1747617043466,-405.22,0.00013698,2]
[361566624,1747617043476,-400.0,0.00013698,2]
[361566625,1747617043485,-400.0,0.00013698,2]
[361566626,1747617043495,-400.0,0.00013698,2]
[361566628,1747617043504,-400.0,0.00013698,2]
[361566629,1747617043516,-400.0,0.00013698,2]
[361566630,1747617043525,-906.4,0.00013698,2]
[361566631,1747617043535,-400.0,0.00013698,2]
[361566632,1747617043544,-400.0,0.00013698,2]
[361566633,1747617043553,-400.0,0.00013698,2]
[361566634,1747617043563,-400.0,0.00013698,2]
[361566635,1747617043572,-611.03,0.00013698,2]
[361566636,1747617043581,-524.17,0.00013698,2]
[361566637,1747617043590,-400.0,0.00013698,2]
[361566639,1747617043600,-868.96,0.00013698,2]
[361566641,1747617043608,-400.0,0.00013698,2]
[361566642,1747617043617,-660.31,0.00013698,2]
[361566643,1747617043627,-434.78,0.00013698,2]
[361566644,1747617043636,-400.0,0.00013698,2]
[361566645,1747617043645,-463.10007095,0.00013698,2]
[361566646,1747617043654,-546.28,0.00013698,2]
[361566647,1747617043663,-1196.62,0.00013698,2]
[361566648,1747617043672,-400.0,0.00013698,2]
[361566649,1747617043681,-656.5,0.00013698,2]
[361566650,1747617043690,-400.0,0.00013698,2]
[361566651,1747617043700,-400.0,0.00013698,2]
[361566652,1747617043709,-400.0,0.00013698,2]
[361566653,1747617043719,-400.0,0.00013698,2]
[361566654,1747617043728,-403.57,0.00013698,2]
[361566655,1747617043737,-562.26,0.00013698,2]
[361566656,1747617043747,-400.0,0.00013698,2]
[361566657,1747617043756,-400.0,0.00013698,2]
[361566658,1747617043768,-400.96682454,0.00013698,2]
[361566659,1747617043777,-559.48,0.00013698,2]
[361566660,1747617043787,-400.0,0.00013698,2]
[361566661,1747617043797,-926.08,0.00013698,2]
[361566662,1747617043807,-567.9,0.00013698,2]
[361566663,1747617043816,-544.2,0.00013698,2]
[361566664,1747617043825,-400.0,0.00013698,2]
[361566665,1747617043834,-400.0,0.00013698,2]
[361566666,1747617043844,-400.0,0.00013698,2]
[361566667,1747617043854,-1430.29,0.00013698,2]
[361566668,1747617043863,-411.99,0.00013698,2]
[361566669,1747617043873,-400.0,0.00013698,2]
[361566670,1747617043883,-858.0,0.00013698,2]
[361566671,1747617043892,-678.88,0.00013698,2]
[361566672,1747617043902,-400.0,0.00013698,2]
[361566673,1747617043912,-400.0,0.00013698,2]
[361566674,1747617043922,-400.0,0.00013698,2]
[361566675,1747617043932,-1171.25,0.00013698,2]
[361566676,1747617043941,-640.17,0.00013698,2]
[361566677,1747617043951,-400.0,0.00013698,2]
[361566678,1747617043961,-904.83,0.00013698,2]
[361566679,1747617043971,-285.36,0.00013698,2]
[361566680,1747617043982,-426.79,0.00013698,2]
[361566681,1747617043991,-400.0,0.00013698,2]
[361566682,1747617044001,-400.0,0.00013698,2]
[361566683,1747617044011,-400.0,0.00013698,2]
[361566684,1747617044022,-400.0,0.00013698,2]
[361566685,1747617044032,-400.0,0.00013698,2]
[361566686,1747617044041,-400.0,0.00013698,2]
[361566687,1747617044051,-551.21,0.00013698,2]
[361566688,1747617044060,-1217.07,0.00013698,2]
[361566689,1747617044070,-616.2,0.00013698,2]
[361566690,1747617044079,-400.0,0.00013698,2]
[361566691,1747617044090,-687.05,0.00013698,2]
[361566692,1747617044099,-400.0,0.00013698,2]
[361566693,1747617044109,-400.0,0.00013698,2]
[361566694,1747617044118,-400.0,0.00013698,2]
[361566695,1747617044128,-606.96,0.00013698,2]
[361566696,1747617044139,-400.0,0.00013698,2]
[361566697,1747617044148,-400.0,0.00013698,2]
[361566698,1747617044159,-408.19,0.00013698,2]
[361566699,1747617044169,-659.72,0.00013698,2]
[361566700,1747617044179,-400.0,0.00013698,2]
[361566701,1747617044189,-518.44,0.00013698,2]
[361566702,1747617044199,-764.74,0.00013698,2]
[361566703,1747617044209,-400.0,0.00013698,2]
[361566704,1747617044219,-400.3007675,0.00013698,2]
[361566705,1747617044228,-400.0,0.00013698,2]
[361566706,1747617044238,-400.0,0.00013698,2]
[361566707,1747617044247,-400.0,0.00013698,2]
[361566708,1747617044257,-400.0,0.00013698,2]
[361566709,1747617044270,-823.9,0.00013698,2]
[361566710,1747617044279,-400.0,0.00013698,2]
[361566711,1747617044289,-528.23,0.00013698,2]
[361566712,1747617044298,-400.0,0.00013698,2]
[361566713,1747617044307,-858.84,0.00013698,2]
[361566714,1747617044316,-400.0,0.00013698,2]
[361566715,1747617044326,-400.0,0.00013698,2]
[361566716,1747617044337,-400.0,0.00013698,2]
[361566717,1747617044349,-400.0,0.00013698,2]
[361566718,1747617044359,-907.12,0.00013698,2]
[361566719,1747617044369,-875.83,0.00013698,2]
[361566720,1747617044378,-415.77,0.00013698,2]
[361566721,1747617044388,-400.0,0.00013698,2]
[361566722,1747617044397,-400.0,0.00013698,2]
[361566723,1747617044407,-400.0,0.00013698,2]
[361566724,1747617044416,-176.36802567,0.00013698,2]
[361566725,1747617044427,-400.0,0.00013698,2]
[361566726,1747617044436,-400.0,0.00013698,2]
[361566727,1747617044445,-400.0,0.00013698,2]
[361566728,1747617044455,-400.0,0.00013698,2]
[361566729,1747617044465,-1060.49,0.00013698,2]
[361566730,1747617044475,-455.14,0.00013698,2]
[361566731,1747617044484,-400.0,0.00013698,2]
[361566732,1747617044493,-293.22197007,0.00013698,2]
[361566733,1747617044502,-400.0,0.00013698,2]
[361566734,1747617044514,-400.0,0.00013698,2]
[361566735,1747617044523,-400.0,0.00013698,2]
[361566736,1747617044532,-400.0,0.00013698,2]
[361566737,1747617044541,-400.0,0.00013698,2]
[361566738,1747617044552,-227.98916587,0.00013698,2]
[361566739,1747617044561,-523.63,0.00013698,2]
[361566740,1747617044570,-400.0,0.00013698,2]
[361566741,1747617044579,-400.0,0.00013698,2]
[361566742,1747617044589,-445.11,0.00013698,2]
[361566743,1747617044598,-400.0,0.00013698,2]
[361566744,1747617044610,-477.13,0.00013698,2]
[361566745,1747617044619,-173.51232239,0.00013698,2]
[361566746,1747617044629,-508.35,0.00013698,2]
[361566747,1747617044638,-358.20518123,0.00013698,2]
[361566748,1747617044647,-400.0,0.00013698,2]
[361566749,1747617044656,-400.0,0.00013698,2]
[361566750,1747617044666,-670.62,0.00013698,2]
[361566751,1747617044675,-721.81,0.00013698,2]
[361566752,1747617044684,-400.0,0.00013698,2]
[361566753,1747617044693,-400.0,0.00013698,2]
[361566754,1747617044702,-400.0,0.00013698,2]
[361566755,1747617044711,-1162.5,0.00013698,2]
[361566756,1747617044721,-500.0,0.00013698,2]
[361566757,1747617044731,-446.99738245,0.00013698,2]
[361566758,1747617044740,-697.22,0.00013698,2]
[361566759,1747617044750,-400.0,0.00013698,2]
[361566760,1747617044759,-1415.12,0.00013698,2]
[361566761,1747617044770,-400.0,0.00013698,2]
[361566762,1747617044779,-400.0,0.00013698,2]
[361566763,1747617044788,-1251.44,0.00013698,2]
[361566764,1747617044797,-400.0,0.00013698,2]
[361566765,1747617044806,-400.0,0.00013698,2]
[361566766,1747617044817,-1187.58,0.00013698,2]
[361566767,1747617044826,-400.0,0.00013698,2]
[361566768,1747617044836,-400.0,0.00013698,2]
[361566769,1747617044845,-400.0,0.00013698,2]
[361566770,1747617044854,-500.0,0.00013698,2]
[361566771,1747617044863,-459.33175766,0.00013698,2]
[361566772,1747617044873,-500.0,0.00013698,2]
[361566773,1747617044883,-637.66,0.00013698,2]
[361566774,1747617044892,-400.0,0.00013698,2]
[361566775,1747617044902,-513.44,0.00013698,2]
[361566776,1747617044911,-272.08418421,0.00013698,2]
[361566777,1747617044920,-400.0,0.00013698,2]
[361566778,1747617044930,-400.0,0.00013698,2]
[361566779,1747617044939,-400.0,0.00013698,2]
[361566780,1747617044949,-400.0,0.00013698,2]
[361566781,1747617044958,-400.0,0.00013698,2]
[361566782,1747617044968,-400.0,0.00013698,2]
[361566783,1747617044978,-400.0,0.00013698,2]
[361566784,1747617044987,-400.0,0.00013698,2]
[361566785,1747617044997,-400.0,0.00013698,2]
[361566786,1747617045006,-400.0,0.00013698,2]
[361566787,1747617045017,-400.0,0.00013698,2]
[361566788,1747617045027,-400.0,0.00013698,2]
[361566789,1747617045036,-810.25,0.00013698,2]
[361566790,1747617045046,-588.64,0.00013698,2]
[361566791,1747617045055,-400.0,0.00013698,2]
[361566792,1747617045065,-400.0,0.00013698,2]
[361566793,1747617045074,-400.0,0.00013698,2]
[361566794,1747617045084,-400.0,0.00013698,2]
[361566795,1747617045093,-400.0,0.00013698,2]
[361566796,1747617045103,-1374.64,0.00013698,2]
[361566797,1747617045112,-2211.36,0.00013698,2]
[361566798,1747617045122,-400.0,0.00013698,2]
[361566799,1747617045132,-400.0,0.00013698,2]
[361566800,1747617045142,-400.0,0.00013698,2]
[361566801,1747617045151,-1069.06,0.00013698,2]
[361566802,1747617045161,-400.0,0.00013698,2]
[361566803,1747617045170,-463.37,0.00013698,2]
[361566804,1747617045180,-649.36,0.00013698,2]
[361566805,1747617045189,-492.92,0.00013698,2]
[361566806,1747617045199,-400.0,0.00013698,2]
[361566807,1747617045208,-511.12,0.00013698,2]
[361566808,1747617045217,-671.61,0.00013698,2]
[361566809,1747617045226,-400.0,0.00013698,2]
[361566810,1747617045235,-738.73,0.00013698,2]
[361566811,1747617045244,-1473.4,0.00013698,2]
[361566812,1747617045253,-400.0,0.00013698,2]
[361566813,1747617045265,-400.0,0.00013698,2]
[361566814,1747617045274,-400.0,0.00013698,2]
[361566815,1747617045283,-157.11954103,0.00013698,2]
[361566816,1747617045293,-400.0,0.00013698,2]
[361566817,1747617045303,-400.0,0.00013698,2]
[361566818,1747617045312,-470.91,0.00013698,2]
[361566819,1747617045321,-400.0,0.00013698,2]
[361566820,1747617045330,-400.0,0.00013698,2]
[361566821,1747617045340,-400.0,0.00013698,2]
[361566822,1747617045354,-400.0,0.00013698,2]
[361566823,1747617045363,-400.0,0.00013698,2]
[361566824,1747617045373,-866.9,0.00013698,2]
[361566825,1747617045382,-400.0,0.00013698,2]
[361566826,1747617045392,-484.19,0.00013698,2]
[361566827,1747617045401,-400.0,0.00013698,2]
[361566828,1747617045411,-400.0,0.00013698,2]
[361566829,1747617045420,-400.0,0.00013698,2]
[361566830,1747617045430,-400.0,0.00013698,2]
[361566831,1747617045439,-432.58,0.00013698,2]
[361566832,1747617045449,-400.0,0.00013698,2]
[361566833,1747617045458,-400.0,0.00013698,2]
[361566834,1747617045467,-400.0,0.00013698,2]
[361566835,1747617045477,-400.0,0.00013698,2]
[361566836,1747617045486,-712.66,0.00013698,2]
[361566837,1747617045495,-907.69,0.00013698,2]
[361566838,1747617045504,-400.0,0.00013698,2]
[361566839,1747617045516,-693.7,0.00013698,2]
[361566840,1747617045526,-400.0,0.00013698,2]
[361566841,1747617045535,-421.72,0.00013698,2]
[361566842,1747617045545,-400.0,0.00013698,2]
[361566843,1747617045554,-398.65796253,0.00013698,2]
[361566844,1747617045563,-400.0,0.00013698,2]
[361566845,1747617045573,-400.0,0.00013698,2]
[361566846,1747617045581,-400.0,0.00013698,2]
[361566847,1747617045591,-400.0,0.00013698,2]
[361566848,1747617045600,-400.0,0.00013698,2]
[361566849,1747617045609,-554.72,0.00013698,2]
[361566850,1747617045618,-400.0,0.00013698,2]
[361566851,1747617045627,-400.0,0.00013698,2]
[361566852,1747617045637,-1305.51,0.00013698,2]
[361566853,1747617045646,-400.0,0.00013698,2]
[361566854,1747617045655,-705.07,0.00013698,2]
[361566855,1747617045664,-400.0,0.00013698,2]
[361566856,1747617045673,-515.18077449,0.00013698,2]
[361566857,1747617045682,-1164.52,0.00013698,2]
[361566858,1747617045691,-400.0,0.00013698,2]
[361566859,1747617045701,-400.0,0.00013698,2]
[361566860,1747617045710,-400.0,0.00013698,2]
[361566861,1747617045719,-2304.84,0.00013698,2]
[361566862,1747617045729,-400.0,0.00013698,2]
[361566863,1747617045738,-400.0,0.00013698,2]
[361566864,1747617045747,-400.0,0.00013698,2]
[361566865,1747617045757,-400.0,0.00013698,2]
[361566866,1747617045768,-400.0,0.00013698,2]
[361566867,1747617045778,-569.88,0.00013698,2]
[361566868,1747617045788,-400.0,0.00013698,2]
[361566870,1747617045797,-400.0,0.00013698,2]
[361566871,1747617045806,-400.0,0.00013698,2]
[361566872,1747617045815,-667.2,0.00013698,2]
[361566873,1747617045825,-469.46,0.00013698,2]
[361566874,1747617045834,-400.0,0.00013698,2]
[361566875,1747617045842,-400.0,0.00013698,2]
[361566877,1747617045852,-400.0,0.00013698,2]
[361566878,1747617045861,-400.0,0.00013698,2]
[361566879,1747617045869,-400.0,0.00013698,2]
[361566880,1747617045879,-400.0,0.00013698,2]
[361566881,1747617045888,-400.0,0.00013698,2]
[361566882,1747617045897,-400.0,0.00013698,2]
[361566884,1747617045907,-400.0,0.00013698,2]
[361566885,1747617045916,-400.0,0.00013698,2]
[361566886,1747617045925,-400.0,0.00013698,2]
[361566887,1747617045934,-400.0,0.00013698,2]
[361566888,1747617045943,-400.0,0.00013698,2]
[361566889,1747617045952,-752.76,0.00013698,2]
[361566890,1747617045961,-824.01,0.00013698,2]
[361566891,1747617045970,-400.0,0.00013698,2]
[361566893,1747617045980,-400.0,0.00013698,2]
[361566895,1747617045989,-400.0,0.00013698,2]
[361566896,1747617045998,-483.5501376,0.00013698,2]
[361566898,1747617046008,-1064.96,0.00013698,2]
[361566900,1747617046019,-1749.54,0.00013698,2]
[361566901,1747617046028,-400.0,0.00013698,2]
[361566902,1747617046038,-400.0,0.00013698,2]
[361566903,1747617046048,-416.74875989,0.00013698,2]
[361566904,1747617046057,-400.0,0.00013698,2]
[361566905,1747617046066,-400.0,0.00013698,2]
[361566906,1747617046075,-400.0,0.00013698,2]
[361566907,1747617046084,-400.0,0.00013698,2]
[361566908,1747617046094,-622.8,0.00013698,2]
[361566909,1747617046103,-400.0,0.00013698,2]
[361566910,1747617046112,-900.35,0.00013698,2]
[361566911,1747617046121,-485.92,0.00013698,2]
[361566912,1747617046131,-400.0,0.00013698,2]
[361566913,1747617046140,-400.0,0.00013698,2]
[361566914,1747617046149,-971.49,0.00013698,2]
[361566915,1747617046158,-1200.29,0.00013698,2]
[361566916,1747617046167,-400.0,0.00013698,2]
[361566917,1747617046176,-400.0,0.00013698,2]
[361566918,1747617046185,-400.0,0.00013698,2]
[361566919,1747617046195,-1025.28,0.00013698,2]
[361566920,1747617046204,-400.0,0.00013698,2]
[361566921,1747617046213,-400.0,0.00013698,2]
[361566922,1747617046223,-500.0,0.00013698,2]
[361566923,1747617046232,-806.23,0.00013698,2]
[361566924,1747617046241,-400.0,0.00013698,2]
[361566925,1747617046251,-400.0,0.00013698,2]
[361566926,1747617046264,-400.0,0.00013698,2]
[361566927,1747617046273,-500.0,0.00013698,2]
[361566928,1747617046282,-400.0,0.00013698,2]
[361566929,1747617046291,-400.0,0.00013698,2]
[361566930,1747617046300,-400.0,0.00013698,2]
[361566931,1747617046309,-400.0,0.00013698,2]
[361566932,1747617046319,-400.0,0.00013698,2]
[361566933,1747617046328,-497.72,0.00013698,2]
[361566934,1747617046338,-400.0,0.00013698,2]
[361566935,1747617046349,-400.0,0.00013698,2]
[361566936,1747617046358,-500.0,0.00013698,2]
[361566937,1747617046367,-400.0,0.00013698,2]
[361566938,1747617046377,-400.0,0.00013698,2]
[361566939,1747617046387,-400.0,0.00013698,2]
[361566940,1747617046396,-400.0,0.00013698,2]
[361566942,1747617046405,-478.84,0.00013698,2]
[361566943,1747617046414,-1012.27,0.00013698,2]
[361566944,1747617046423,-400.0,0.00013698,2]
[361566945,1747617046433,-413.63679711,0.00013698,2]
[361566946,1747617046442,-340.22892884,0.00013698,2]
[361566947,1747617046451,-400.0,0.00013698,2]
[361566948,1747617046460,-1001.79,0.00013698,2]
[361566949,1747617046469,-400.0,0.00013698,2]
[361566950,1747617046478,-400.0,0.00013698,2]
[361566951,1747617046487,-400.0,0.00013698,2]
[361566952,1747617046497,-400.0,0.00013698,2]
[361566953,1747617046506,-827.27,0.00013698,2]
[361566954,1747617046517,-400.0,0.00013698,2]
[361566955,1747617046526,-400.0,0.00013698,2]
[361566957,1747617046535,-507.52,0.00013698,2]
[361566959,1747617046544,-210.25056691,0.00013698,2]
[361566961,1747617046554,-335.13304621,0.00013698,2]
[361566963,1747617046563,-1294.48,0.00013698,2]
[361566965,1747617046572,-400.0,0.00013698,2]
[361566967,1747617046582,-400.0,0.00013698,2]
[361566968,1747617046592,-400.0,0.00013698,2]
[361566969,1747617046601,-400.0,0.00013698,2]
[361566970,1747617046611,-425.61560095,0.00013698,2]
[361566971,1747617046620,-400.0,0.00013698,2]
[361566973,1747617046628,-400.0,0.00013698,2]
[361566975,1747617046637,-400.0,0.00013698,2]
[361566976,1747617046646,-400.0,0.00013698,2]
[361566977,1747617046655,-400.0,0.00013698,2]
[361566978,1747617046664,-400.0,0.00013698,2]
[361566979,1747617046673,-796.73,0.00013698,2]
[361566980,1747617046682,-400.0,0.00013698,2]
[361566981,1747617046691,-400.0,0.00013698,2]
[361566982,1747617046700,-8449.17,0.00013698,2]
[361566983,1747617046710,-400.0,0.00013698,2]
[361566984,1747617046718,-618.27,0.00013698,2]
[361566985,1747617046727,-400.0,0.00013698,2]
[361566986,1747617046736,-496.26,0.00013698,2]
[361566987,1747617046746,-400.0,0.00013698,2]
[361566988,1747617046756,-401.27469673,0.00013698,2]
[361566989,1747617046767,-400.0,0.00013698,2]
[361566990,1747617046777,-400.0,0.00013698,2]
[361566991,1747617046786,-400.0,0.00013698,2]
[361566992,1747617046796,-400.0,0.00013698,2]
[361566993,1747617046806,-698.22,0.00013698,2]
[361566994,1747617046815,-400.0,0.00013698,2]
[361566995,1747617046824,-400.0,0.00013698,2]
[361566996,1747617046834,-400.0,0.00013698,2]
[361566997,1747617046843,-648.13,0.00013698,2]
[361566998,1747617046852,-266.39811612,0.00013698,2]
[361566999,1747617046862,-501.85,0.00013698,2]
[361567000,1747617046871,-400.0,0.00013698,2]
[361567001,1747617046881,-500.0,0.00013698,2]
[361567002,1747617046890,-906.98,0.00013698,2]
[361567003,1747617046899,-400.0,0.00013698,2]
[361567004,1747617046908,-400.0,0.00013698,2]
[361567005,1747617046917,-400.0,0.00013698,2]
[361567006,1747617046927,-400.0,0.00013698,2]
[361567007,1747617046937,-400.0,0.00013698,2]
[361567008,1747617046946,-400.0,0.00013698,2]
[361567009,1747617046955,-400.0,0.00013698,2]
[361567010,1747617046965,-400.0,0.00013698,2]
[361567011,1747617046974,-435.67,0.00013698,2]
[361567012,1747617046983,-400.0,0.00013698,2]
[361567013,1747617046992,-1607.05,0.00013698,2]
[361567014,1747617047002,-400.0,0.00013698,2]
[361567015,1747617047011,-5189.58,0.00013698,2]
[361567016,1747617047023,-400.0,0.00013698,2]
[361567017,1747617047032,-400.0,0.00013698,2]
[361567018,1747617047041,-943.81,0.00013698,2]
[361567019,1747617047051,-400.0,0.00013698,2]
[361567020,1747617047060,-1094.67,0.00013698,2]
[361567021,1747617047069,-400.0,0.00013698,2]
[361567022,1747617047079,-400.0,0.00013698,2]
[361567023,1747617047088,-400.0,0.00013698,2]
[361567024,1747617047097,-500.0,0.00013698,2]
[361567025,1747617047108,-669.82,0.00013698,2]
[361567026,1747617047117,-477.23,0.00013698,2]
[361567027,1747617047127,-400.0,0.00013698,2]
[361567028,1747617047136,-464.03461751,0.00013698,2]
[361567029,1747617047146,-1142.9,0.00013698,2]
[361567030,1747617047155,-400.0,0.00013698,2]
[361567031,1747617047165,-1152.22,0.00013698,2]
[361567032,1747617047175,-400.0,0.00013698,2]
[361567033,1747617047184,-454.33,0.00013698,2]
[361567034,1747617047194,-2214.8,0.00013698,2]
[361567035,1747617047203,-529.18,0.00013698,2]
[361567036,1747617047213,-507.4,0.00013698,2]
[361567037,1747617047222,-400.0,0.00013698,2]
[361567038,1747617047232,-400.0,0.00013698,2]
[361567039,1747617047241,-400.0,0.00013698,2]
[361567040,1747617047251,-546.39,0.00013698,2]
[361567041,1747617047261,-400.0,0.00013698,2]
[361567042,1747617047273,-7697.2,0.00013698,2]
[361567043,1747617047282,-1566.66,0.00013698,2]
[361567044,1747617047292,-1259.99,0.00013698,2]
[361567045,1747617047301,-501.25629161,0.00013698,2]
[361567046,1747617047311,-822.17,0.00013698,2]
[361567047,1747617047320,-1000.0,0.00013698,2]